Workbook

Sheet Плитка,полосы-Импорт
A4: ОПТОВЫЕ ЦЕНЫ | I4: Дата | J4: =TODAY() -> 2025-06-01
I5: Курс USD | J5: 90
A7: Московская обл., г. Реутов, ул. Фабричная, 4 | J7: sale@graniteh.ru
A8: тел: (495) 777-60-74, 645-70-95 / WhatsApp: (926) 746-68-07 | J8: http://www.graniteh.ru
A9: Плита, ступени, полуслэбы гранитные облицовочные, производство - Индия (высший сорт) | J9: со склада в Москве (500 м от МКАД)
A10: Absolute Black Абсолют Блэк | C10: 300*600*18 | D10: 4(6)00*600*18 | E10: 350(400)*L*18 | F10: 600*L*18 | G10: 700*L*30 | H10: 300*600*18 | I10: 300*600*30 | J10: 350*L*30
C11: полировка | D11: полировка | E11: полировка | F11: полировка | G11: полировка/термо | H11: термо | I11: термо | J11: термо
C12: =Лист2!C13*'Плитка,полосы-Импорт'!$J$5/30 -> 6120 | D12: =Лист2!D13*'Плитка,полосы-Импорт'!$J$5/30 -> 6750 | E12: =Лист2!E13*'Плитка,полосы-Импорт'!$J$5/30 -> 8550 | F12: =Лист2!F13*'Плитка,полосы-Импорт'!$J$5/30 -> 9000 | G12: =Лист2!G13*'Плитка,полосы-Импорт'!$J$5/30 -> 13950 | H12: =Лист2!H13*'Плитка,полосы-Импорт'!$J$5/30 -> 6120 | I12: =Лист2!I13*'Плитка,полосы-Импорт'!$J$5/30 -> 8550 | J12: =Лист2!J13*'Плитка,полосы-Импорт'!$J$5/30 -> 12150
A13: Imperial Red Империал Рэд | C13: 300*600*18 | D13: 600*600*18 | E13: 350(400)*L*18 | F13: 600*L*18 | G13: 700*L*30 | H13: 300*600*18 | I13: 300*600*30 | J13: 350*L*30
C14: полировка | D14: полировка | E14: полировка | F14: полировка | G14: полировка/термо | H14: термо | I14: термо | J14: термо
C15: =Лист2!C16*'Плитка,полосы-Импорт'!$J$5/30 -> 5310 | D15: - | E15: =Лист2!E16*'Плитка,полосы-Импорт'!$J$5/30 -> 5850 | F15: =Лист2!F16*'Плитка,полосы-Импорт'!$J$5/30 -> 6390 | G15: =Лист2!G16*'Плитка,полосы-Импорт'!$J$5/30 -> 9990 | H15: =Лист2!H16*'Плитка,полосы-Импорт'!$J$5/30 -> 5310 | I15: =Лист2!I16*'Плитка,полосы-Импорт'!$J$5/30 -> 7380 | J15: =Лист2!J16*'Плитка,полосы-Импорт'!$J$5/30 -> 9090
A16: Stell Grey Стил Грей | C16: 300*600*18 | D16: 600*600*18 | E16: 350(400)*L*18 | F16: 600*L*18 | G16: 700*L*30 | H16: 300*600*18 | I16: 300*600*30 | J16: 350*L*30
C17: полировка | D17: полировка | E17: полировка | F17: полировка | G17: полировка/термо | H17: термо | I17: термо | J17: термо
C18: =Лист2!C19*'Плитка,полосы-Импорт'!$J$5/30 -> 5310 | D18: - | E18: - | F18: =Лист2!F19*'Плитка,полосы-Импорт'!$J$5/30 -> 6390 | G18: =Лист2!G19*'Плитка,полосы-Импорт'!$J$5/30 -> 9990 | H18: =Лист2!H19*'Плитка,полосы-Импорт'!$J$5/30 -> 5310 | I18: =Лист2!I19*'Плитка,полосы-Импорт'!$J$5/30 -> 7380 | J18: =Лист2!J19*'Плитка,полосы-Импорт'!$J$5/30 -> 9090
A19: Tan Brown Тан Браун | C19: 300*600*18 | D19: 600*600*18 | E19: 350(400)*L*18 | F19: 600*L*18 | G19: 700*L*30 | H19: 300*600*18 | I19: 300*600*30 | J19: 350*L*30
C20: полировка | D20: полировка | E20: полировка | F20: полировка | G20: полировка/термо | H20: термо | I20: термо | J20: термо
C21: =Лист2!C22*'Плитка,полосы-Импорт'!$J$5/30 -> 5040 | D21: =Лист2!D22*'Плитка,полосы-Импорт'!$J$5/30 -> 5490 | E21: =Лист2!E22*'Плитка,полосы-Импорт'!$J$5/30 -> 5850 | F21: =Лист2!F22*'Плитка,полосы-Импорт'!$J$5/30 -> 6390 | G21: =Лист2!G22*'Плитка,полосы-Импорт'!$J$5/30 -> 9990 | H21: =Лист2!H22*'Плитка,полосы-Импорт'!$J$5/30 -> 5040 | I21: =Лист2!I22*'Плитка,полосы-Импорт'!$J$5/30 -> 7110 | J21: =Лист2!J22*'Плитка,полосы-Импорт'!$J$5/30 -> 9090
A22: Плита, ступени, полуслэбы гранитные облицовочные, производство - Иран (высший сорт) | J22: со склада в Москве (500 м от МКАД)
A23: Royal White (I) Роял Вайт (И) G603(I) | C23: 300*600*18 | D23: 600*600*18 | E23: 150-350*L*18 | F23: 350*L*30 | G23: 600*L*30 | H23: 300*600*18 | I23: 300*600*30 | J23: 350*L*30
C24: полировка | D24: полировка | E24: полировка | F24: полировка | G24: полировка/термо | H24: термо | I24: пол/термо | J24: термо
C25: =Лист2!C26*'Плитка,полосы-Импорт'!$J$5/30 -> 3150 | D25: - | E25: - | F25: - | G25: =Лист2!G26*'Плитка,полосы-Импорт'!$J$5/30 -> 4680 | H25: =Лист2!H26*'Плитка,полосы-Импорт'!$J$5/30 -> 3150 | I25: =Лист2!I26*'Плитка,полосы-Импорт'!$J$5/30 -> 4410 | J25: =Лист2!J26*'Плитка,полосы-Импорт'!$J$5/30 -> 4590
A26: Нью Покоста Iran Grey | C26: 300*600*18 | D26: 600*600*18 | E26: 150-350*L*18 | F26: 350*L*30 | G26: 600*L*30 | H26: 300*600*18 | I26: 300*600*30 | J26: 350*L*30
C27: полировка | D27: полировка | E27: полировка | F27: полировка | G27: полировка/термо | H27: термо | I27: пол/термо | J27: термо
C28: =Лист2!C29*'Плитка,полосы-Импорт'!$J$5/30 -> 3420 | D28: - | E28: - | F28: - | G28: - | H28: =Лист2!H29*'Плитка,полосы-Импорт'!$J$5/30 -> 3420 | I28: - | J28: -
A29: Плита, ступени, полуслэбы гранитные облицовочные, производство - Китай (высший сорт) | J29: со склада в Москве (500 м от МКАД)
A30: Bainbrook Brown "Альтернатива" G664 | C30: 300*600*18 | D30: 600*600*18 | E30: 600*L*18 | F30: 400*L*30 | G30: 700*L*30 | H30: 300*600*18 | I30: 300*600*30 | J30: 350*L*30
C31: полировка | D31: полировка | E31: полировка | F31: полировка | G31: полировка/термо | H31: термо | I31: пол/термо | J31: термо
C32: - | D32: - | E32: - | F32: - | G32: - | H32: - | I32: - | J32: 2500р.
A33: Royal White "Кантри" G603 | C33: 300*600*18 | D33: 600*600*18 | E33: 600*L*18 | F33: 400*L*30 | G33: 700*L*30 | H33: 300*600*18 | I33: 300*600*30 | J33: 350*L*30
C34: полировка | D34: полировка | E34: полировка | F34: полировка | G34: полировка/термо | H34: термо | I34: термо | J34: термо
C35: =Лист2!C36*'Плитка,полосы-Импорт'!$J$5/30 -> 3510 | D35: - | E35: =Лист2!E36*'Плитка,полосы-Импорт'!$J$5/30 -> 3870 | F35: - | G35: =Лист2!G36*'Плитка,полосы-Импорт'!$J$5/30 -> 5130 | H35: 2500р. | I35: =Лист2!I36*'Плитка,полосы-Импорт'!$J$5/30 -> 4500 | J35: =Лист2!J36*'Плитка,полосы-Импорт'!$J$5/30 -> 4770
A36: Примечание:
A37: 1. Цена указана за 1 квадратный метр продукции, включая упаковку и погрузку на транспортное средство клиента
A38: 2. На партии продукции более 1000 м2 предоставляются скидки
A39: 3. На партии продукции менее 10 м2 действует наценка - 10%
A40: 4. На партии продукции более 10 м2, но менее 25 м2 действует наценка - 5%
A41: 5. В случае значительного изменения курсов валют, при расчете стоимости применяется текущий биржевой курс доллара США
A42: 6. На дополнительную услугу - переборка изделий, включая распаковку, пересортировку и повторную упаковку, действует наценка - 20%

Sheet Лист2 (hidden)
A11: Absolute Black Абсолют Блэк | C11: 300*600*20 | D11: 400*600*20 | G11: 700*L*30 | H11: 300*600*20 | I11: 300*600*30 | J11: 350*L*30
C12: полировка | D12: полировка | G12: полировка | H12: термо | I12: термо | J12: термо
C13: 2040 | D13: 2250 | E13: 2850 | F13: 3000 | G13: 4650 | H13: 2040 | I13: 2850 | J13: 4050
A14: Imperial Red Империал Рэд | C14: 300*600*20 | D14: 600*600*20 | G14: 700*L*30 | H14: 300*600*20 | I14: 300*600*30 | J14: 700*L*30
C15: полировка | D15: полировка | G15: полировка | H15: термо | I15: термо | J15: термо
C16: 1770 | D16: 1830 | E16: 1950 | F16: 2130 | G16: 3330 | H16: 1770 | I16: 2460 | J16: 3030
A17: Stell Grey Стил Грей | C17: 300*600*20 | D17: 600*600*20 | G17: 700*L*30 | H17: 300*600*20 | I17: 300*600*30 | J17: 700*L*30
C18: полировка | D18: полировка | G18: полировка | H18: термо | I18: термо | J18: термо
C19: 1770 | F19: 2130 | G19: 3330 | H19: 1770 | I19: 2460 | J19: 3030
A20: Tan Brown Тан Браун | C20: 300*600*20 | D20: 600*600*20 | G20: 700*L*30 | H20: 300*600*20 | I20: 300*600*30 | J20: 350*L*30
C21: полировка | D21: полировка | G21: полировка | H21: термо | I21: термо | J21: термо
C22: 1680 | D22: 1830 | E22: 1950 | F22: 2130 | G22: 3330 | H22: 1680 | I22: 2370 | J22: 3030
A24: Bhfy | C24: 300*600*18 | D24: 600*600*18 | E24: 150-350*L*18 | F24: 350*L*30 | G24: 600*L*30 | H24: 300*600*18 | I24: 300*600*30 | J24: 350*L*30
C25: полировка | D25: полировка | E25: полировка | F25: полировка | G25: полировка | H25: термо | I25: пол/термо | J25: термо
C26: 1050 | F26: 1530 | G26: 1560 | H26: 1050 | I26: 1470 | J26: 1530
A27: Bhfy | C27: 300*600*18 | D27: 600*600*18 | E27: 150-350*L*18 | F27: 350*L*30 | G27: 600*L*30 | H27: 300*600*18 | I27: 300*600*30 | J27: 350*L*30
C28: полировка | D28: полировка | E28: полировка | F28: полировка | G28: полировка | H28: термо | I28: пол/термо | J28: термо
C29: 1140 | H29: 1140
A31: Bainbrook Brown "Альтернатива" G664 | C31: 300*600*20 | D31: 600*600*20 | E31: 350*L*20 | F31: 400*L*30 | G31: 700*L*30 | H31: 300*600*20 | I31: 300*600*30 | J31: 350*L*30
C32: полировка | D32: полировка | E32: полировка | F32: полировка | G32: полировка | H32: термо | I32: пол/термо | J32: термо
C33: 990 | D33: 1020 | E33: 990 | F33: 900 | G33: 900 | H33: 990 | I33: 1440 | J33: 1380
A34: Royal White "Кантри" G603 | C34: 300*600*20 | D34: 600*600*20 | E34: 350*L*20 | F34: 400*L*30 | G34: 700*L*30 | H34: 300*600*20 | I34: 300*600*30 | J34: 350*L*30
C35: полировка | D35: полировка | E35: полировка | F35: полировка | G35: полировка | H35: термо | I35: термо | J35: термо
C36: 1170 | E36: 1290 | G36: 1710 | H36: 1170 | I36: 1500 | J36: 1590

Sheet Плитка-производство Россия
A4: ОПТОВЫЕ ЦЕНЫ
A7: Московская обл., г. Реутов, ул. Фабричная, 4 | G7: sale@graniteh.ru
A8: тел: (495) 777-60-74, 645-70-95 / WhatsApp: (926) 746-68-07 | G8: http://www.graniteh.ru
A10: Плита и ступени гранитные собственного производства | G10: со склада в г. Воскресенск (88км от МКАД)
A11: Ала-Носкуа | C11: 300*600mm, 400*600mm, 300*300mm, 400*400mm
C12: h = 20 mm | D12: h = 30 mm | E12: h = 40 mm | F12: h = 50 mm | G12: h = 60 mm
C13: 4490 | D13: 5390 | E13: 6490 | F13: 7390 | G13: 8090
A14: Возрождение | C14: 300*600mm, 400*600mm, 300*300mm, 400*400mm
C15: h = 20 mm | D15: h = 30 mm | E15: h = 40 mm | F15: h = 50 mm | G15: h = 60 mm
C16: 5290 | D16: 6290 | E16: 7690 | F16: 8790 | G16: 9990
A17: Гранатовый амфиболит Нигозеро | C17: 1
C18: h = 20 mm | D18: h = 30 mm | E18: h = 40 mm | F18: h = 50 mm | G18: h = 60 mm
C19: 5690 | D19: 7090 | E19: 8690 | F19: 9990 | G19: 11190
A20: Дымовский (Елизовский) | C20: 300*600mm, 400*600mm, 300*300mm, 400*400mm
C21: h = 20 mm | D21: h = 30 mm | E21: h = 40 mm | F21: h = 50 mm | G21: h = 60 mm
C22: 5290 | D22: 6490 | E22: 7690 | F22: 8790 | G22: 9990
A23: Балтийский | C23: 300*600mm, 400*600mm, 300*300mm, 400*400mm
C24: h = 20 mm | D24: h = 30 mm | E24: h = 40 mm | F24: h = 50 mm | G24: h = 60 mm
C25: 5490 | D25: 6490 | E25: 7890 | F25: 8990 | G25: 10190
A26: Жалгыз | C26: 300*600mm, 400*600mm, 300*300mm, 400*400mm
C27: h = 20 mm | D27: h = 30 mm | E27: h = 40 mm | F27: h = 50 mm | G27: h = 60 mm
C28: 3690 | D28: 4290 | E28: 4990 | F28: 5590 | G28: 6590
A29: Жельтау-1 | C29: 300*600mm, 400*600mm, 300*300mm, 400*400mm
C30: h = 20 mm | D30: h = 30 mm | E30: h = 40 mm | F30: h = 50 mm | G30: h = 60 mm
C31: 4790 | D31: 5590 | E31: 6590 | F31: 7490 | G31: 8090
A32: Жельтау-2А | C32: 300*600mm, 400*600mm, 300*300mm, 400*400mm
C33: h = 20 mm | D33: h = 30 mm | E33: h = 40 mm | F33: h = 50 mm | G33: h = 60 mm
C34: 4790 | D34: 5590 | E34: 6590 | F34: 7490 | G34: 8090
A35: Лабрадорит Волга Блю | C35: 300*600mm, 400*600mm, 300*300mm, 400*400mm
C36: h = 20 mm | D36: h = 30 mm | E36: h = 40 mm | F36: h = 50 mm | G36: h = 60 mm
C37: 9990 | D37: 12290 | E37: 15990 | F37: 18990 | G37: 21890
A38: Камбулатовский | C38: 300*600mm, 400*600mm, 300*300mm, 400*400mm
C39: h = 20 mm | D39: h = 30 mm | E39: h = 40 mm | F39: h = 50 mm | G39: h = 60 mm
C40: 3590 | D40: 4290 | E40: 5090 | F40: 5790 | G40: 6290
A41: Капустинский | C41: 300*600mm, 400*600mm, 300*300mm, 400*400mm
C42: h = 20 mm | D42: h = 30 mm | E42: h = 40 mm | F42: h = 50 mm | G42: h = 60 mm
C43: 6990 | D43: 8190 | E43: 9990 | F43: 11990 | G43: 13990
A44: Куртинский* | C44: 300*600mm, 400*600mm, 300*300mm, 400*400mm
C45: h = 20 mm | D45: h = 30 mm | E45: h = 40 mm | F45: h = 50 mm | G45: h = 60 mm
C46: 3790 | D46: 4490 | E46: 5290 | F46: 5990 | G46: 6490
A47: Мансуровский | C47: 300*600mm, 400*600mm, 300*300mm, 400*400mm
C48: h = 20 mm | D48: h = 30 mm | E48: h = 40 mm | F48: h = 50 mm | G48: h = 60 mm
C49: 4240 | D49: 5140 | E49: 6140 | F49: 6890 | G49: 7640
A50: Неро Бухара | C50: 300*600mm, 400*600mm, 300*300mm, 400*400mm
C51: h = 20 mm | D51: h = 30 mm | E51: h = 40 mm | F51: h = 50 mm | G51: h = 60 mm
C52: 4490 | D52: 5390 | E52: 6190 | F52: 7190 | G52: 8690
A53: Покостовский | C53: 300*600mm, 400*600mm, 300*300mm, 400*400mm
C54: h = 20 mm | D54: h = 30 mm | E54: h = 40 mm | F54: h = 50 mm | G54: h = 60 mm
C55: 5290 | D55: 6290 | E55: 7690 | F55: 8890 | G55: 9990
A56: Сибирский | C56: 300*600mm, 400*600mm, 300*300mm, 400*400mm
C57: h = 20 mm | D57: h = 30 mm | E57: h = 40 mm | F57: h = 50 mm | G57: h = 60 mm
C58: 4290 | D58: 4990 | E58: 6090 | F58: 6990 | G58: 7590
A59: Южно-Султаевский | C59: 300*600mm, 400*600mm, 300*300mm, 400*400mm
C60: h = 20 mm | D60: h = 30 mm | E60: h = 40 mm | F60: h = 50 mm | G60: h = 60 mm
C61: 4190 | D61: 5090 | E61: 5990 | F61: 6790 | G61: 7490
A62: Габбро Другорецкое | C62: 300*600mm, 400*600mm, 300*300mm, 400*400mm
C63: h = 20 mm | D63: h = 30 mm | E63: h = 40 mm | F63: h = 50 mm | G63: h = 60 mm
C64: 7990 | D64: 10990 | E64: 18690 | F64: 22290 | G64: 25690
A65: Примечание:
A66: 1. Цена указана за 1 квадратный метр продукции, включая упаковку и погрузку на транспортное средство клиента
A67: 2. На партии продукции более 1000 м2 предоставляются сезонные скидки
A68: 3. При заказе нестандартной длины плиты действует наценка - 20%
A69: 4. На партии продукции менее 50 м2 действует наценка - 10%
A70: 5. На партии продукции менее 25 м2 действует наценка - 20%
A71: 6. * - Цена указана за сорт "стандарт", за цвет "люкс-темный" действует наценка - 10%
A72: 7. На дополнительную услугу - переборка изделий, включая распаковку, пересортировку и повторную упаковку, действует наценка - 20%
A73: 8. При заказе длины и ширины менее 300 мм действует наценка - 5%
A77: ОПТОВЫЕ ЦЕНЫ
A80: Московская обл., г. Реутов, ул. Фабричная, 4 | G80: sale@graniteh.ru
A81: тел: (495) 777-60-74, 645-70-95 / WhatsApp: (926) 746-68-07 | G81: http://www.graniteh.ru
A83: Плита и ступени гранитные собственного производства | G83: со склада в г. Реутов (1 км от МКАД)
A84: Ала-Носкуа | C84: 300*600mm, 400*600mm, 300*300mm, 400*400mm
C85: h = 20 mm | D85: h = 30 mm | E85: h = 40 mm | F85: h = 50 mm | G85: h = 60 mm
C86: =C13+400 -> 4890 | D86: =D13+600 -> 5990 | E86: =E13+800 -> 7290 | F86: =F13+1000 -> 8390 | G86: =G13+1200 -> 9290
A87: Возрождение | C87: 300*600mm, 400*600mm, 300*300mm, 400*400mm
C88: h = 20 mm | D88: h = 30 mm | E88: h = 40 mm | F88: h = 50 mm | G88: h = 60 mm
C89: =C16+400 -> 5690 | D89: =D16+600 -> 6890 | E89: =E16+800 -> 8490 | F89: =F16+1000 -> 9790 | G89: =G16+1200 -> 11190
A90: Гранатовый амфиболит Нигозеро | C90: 300*600mm, 400*600mm, 300*300mm, 400*400mm
C91: h = 20 mm | D91: h = 30 mm | E91: h = 40 mm | F91: h = 50 mm | G91: h = 60 mm
C92: =C19+400 -> 6090 | D92: =D19+600 -> 7690 | E92: =E19+800 -> 9490 | F92: =F19+1000 -> 10990 | G92: =G19+1200 -> 12390
A93: Дымовский (Елизовский) | C93: 300*600mm, 400*600mm, 300*300mm, 400*400mm
C94: h = 20 mm | D94: h = 30 mm | E94: h = 40 mm | F94: h = 50 mm | G94: h = 60 mm
C95: =C22+400 -> 5690 | D95: =D22+600 -> 7090 | E95: =E22+800 -> 8490 | F95: =F22+1000 -> 9790 | G95: =G22+1200 -> 11190
A96: Балтийский | C96: 300*600mm, 400*600mm, 300*300mm, 400*400mm
C97: h = 20 mm | D97: h = 30 mm | E97: h = 40 mm | F97: h = 50 mm | G97: h = 60 mm
C98: =C25+400 -> 5890 | D98: =D25+600 -> 7090 | E98: =E25+800 -> 8690 | F98: =F25+1000 -> 9990 | G98: =G25+1200 -> 11390
A99: Жалгыз | C99: 300*600mm, 400*600mm, 300*300mm, 400*400mm
C100: h = 20 mm | D100: h = 30 mm | E100: h = 40 mm | F100: h = 50 mm | G100: h = 60 mm
C101: =C28+400 -> 4090 | D101: =D28+600 -> 4890 | E101: =E28+800 -> 5790 | F101: =F28+1000 -> 6590 | G101: =G28+1200 -> 7790
A102: Жельтау-1 | C102: 300*600mm, 400*600mm, 300*300mm, 400*400mm
C103: h = 20 mm | D103: h = 30 mm | E103: h = 40 mm | F103: h = 50 mm | G103: h = 60 mm
C104: =C31+400 -> 5190 | D104: =D31+600 -> 6190 | E104: =E31+800 -> 7390 | F104: =F31+1000 -> 8490 | G104: =G31+1200 -> 9290
A105: Жельтау-2А | C105: 300*600mm, 400*600mm, 300*300mm, 400*400mm
C106: h = 20 mm | D106: h = 30 mm | E106: h = 40 mm | F106: h = 50 mm | G106: h = 60 mm
C107: =C34+400 -> 5190 | D107: =D34+600 -> 6190 | E107: =E34+800 -> 7390 | F107: =F34+1000 -> 8490 | G107: =G34+1200 -> 9290
A108: Лабрадорит Волга Блю | C108: 300*600mm, 400*600mm, 300*300mm, 400*400mm
C109: h = 20 mm | D109: h = 30 mm | E109: h = 40 mm | F109: h = 50 mm | G109: h = 60 mm
C110: =C37+400 -> 10390 | D110: =D37+600 -> 12890 | E110: =E37+800 -> 16790 | F110: =F37+1000 -> 19990 | G110: =G37+1200 -> 23090
A111: Камбулатовский | C111: 300*600mm, 400*600mm, 300*300mm, 400*400mm
C112: h = 20 mm | D112: h = 30 mm | E112: h = 40 mm | F112: h = 50 mm | G112: h = 60 mm
C113: =C40+400 -> 3990 | D113: =D40+600 -> 4890 | E113: =E40+800 -> 5890 | F113: =F40+1000 -> 6790 | G113: =G40+1200 -> 7490
A114: Капустинский | C114: 300*600mm, 400*600mm, 300*300mm, 400*400mm
C115: h = 20 mm | D115: h = 30 mm | E115: h = 40 mm | F115: h = 50 mm | G115: h = 60 mm
C116: =C43+400 -> 7390 | D116: =D43+600 -> 8790 | E116: =E43+800 -> 10790 | F116: =F43+1000 -> 12990 | G116: =G43+1200 -> 15190
A117: Куртинский* | C117: 300*600mm, 400*600mm, 300*300mm, 400*400mm
C118: h = 20 mm | D118: h = 30 mm | E118: h = 40 mm | F118: h = 50 mm | G118: h = 60 mm
C119: =C46+400 -> 4190 | D119: =D46+600 -> 5090 | E119: =E46+800 -> 6090 | F119: =F46+1000 -> 6990 | G119: =G46+1200 -> 7690
A120: Мансуровский | C120: 300*600mm, 400*600mm, 300*300mm, 400*400mm
C121: h = 20 mm | D121: h = 30 mm | E121: h = 40 mm | F121: h = 50 mm | G121: h = 60 mm
C122: =C49+400 -> 4640 | D122: =D49+600 -> 5740 | E122: =E49+800 -> 6940 | F122: =F49+1000 -> 7890 | G122: =G49+1200 -> 8840
A123: Неро Бухара | C123: 300*600mm, 400*600mm, 300*300mm, 400*400mm
C124: h = 20 mm | D124: h = 30 mm | E124: h = 40 mm | F124: h = 50 mm | G124: h = 60 mm
C125: =C52+400 -> 4890 | D125: =D52+600 -> 5990 | E125: =E52+800 -> 6990 | F125: =F52+1000 -> 8190 | G125: =G52+1200 -> 9890
A126: Покостовский | C126: 300*600mm, 400*600mm, 300*300mm, 400*400mm
C127: h = 20 mm | D127: h = 30 mm | E127: h = 40 mm | F127: h = 50 mm | G127: h = 60 mm
C128: =C55+400 -> 5690 | D128: =D55+600 -> 6890 | E128: =E55+800 -> 8490 | F128: =F55+1000 -> 9890 | G128: =G55+1200 -> 11190
A129: Сибирский | C129: 300*600mm, 400*600mm, 300*300mm, 400*400mm
C130: h = 20 mm | D130: h = 30 mm | E130: h = 40 mm | F130: h = 50 mm | G130: h = 60 mm
C131: =C58+400 -> 4690 | D131: 4990 | E131: =E58+800 -> 6890 | F131: =F58+1000 -> 7990 | G131: =G58+1200 -> 8790
A132: Южно-Султаевский | C132: 300*600mm, 400*600mm, 300*300mm, 400*400mm
C133: h = 20 mm | D133: h = 30 mm | E133: h = 40 mm | F133: h = 50 mm | G133: h = 60 mm
C134: =C61+400 -> 4590 | D134: =D61+600 -> 5690 | E134: =E61+800 -> 6790 | F134: =F61+1000 -> 7790 | G134: =G61+1200 -> 8690
A135: Габбро Другорецкое | C135: 300*600mm, 400*600mm, 300*300mm, 400*400mm
C136: h = 20 mm | D136: h = 30 mm | E136: h = 40 mm | F136: h = 50 mm | G136: h = 60 mm
C137: 7990 | D137: 10990 | E137: =E64+800 -> 19490 | F137: =F64+1000 -> 23290 | G137: =G64+1200 -> 26890
A138: Примечание:
A139: 1. Цена указана за 1 квадратный метр продукции, включая упаковку и погрузку на транспортное средство клиента
A140: 2. На партии продукции более 1000 м2 предоставляются сезонные скидки
A141: 3. При заказе нестандартной длины плиты действует наценка - 20%
A142: 4. На партии продукции менее 50 м2 действует наценка - 10%
A143: 5. На партии продукции менее 25 м2 действует наценка - 20%
A144: 6. * - Цена указана за сорт "стандарт", за цвет "люкс-темный" действует наценка - 10%
A145: 7. На дополнительную услугу - переборка изделий, включая распаковку, пересортировку и повторную упаковку, действует наценка - 20%
A146: 8. При заказе длины и ширины менее 300 мм действует наценка - 5%

Sheet Полосы-производство Россия
A3: ОПТОВЫЕ ЦЕНЫ
A6: Московская обл., г. Реутов, ул. Фабричная, 4 | H6: sale@graniteh.ru
A7: тел: (495) 777-60-74, 645-70-95 / WhatsApp: (926) 746-68-07 | H7: http://www.graniteh.ru
A9: Полосы, ступени и полуслэбы гранитные собственного производства | H9: со склада в г. Воскресенск (88км от МКАД)
A10: Гранит | B10: Фото | C10: Ширина полос | D10: h = 20 mm | E10: h = 30 mm | F10: h = 40 mm | G10: h = 50 mm | H10: h = 60 mm
A11: Ала-Носкуа | C11: 300xL,350хL,400xL | D11: =('Плитка-производство Россия '!C13)*1.15 -> 5163.5 | E11: =('Плитка-производство Россия '!D13)*1.15 -> 6198.5 | F11: =('Плитка-производство Россия '!E13)*1.15 -> 7463.5 | G11: =('Плитка-производство Россия '!F13)*1.15 -> 8498.5 | H11: =('Плитка-производство Россия '!G13)*1.15 -> 9303.5
C12: 500xL,600хL | D12: =('Плитка-производство Россия '!C13)*1.2 -> 5388 | E12: =('Плитка-производство Россия '!D13)*1.2 -> 6468 | F12: =('Плитка-производство Россия '!E13)*1.2 -> 7788 | G12: =('Плитка-производство Россия '!F13)*1.2 -> 8868 | H12: =('Плитка-производство Россия '!G13)*1.2 -> 9708
C13: 700xL | D13: =('Плитка-производство Россия '!C13)*1.3 -> 5837 | E13: =('Плитка-производство Россия '!D13)*1.3 -> 7007 | F13: =('Плитка-производство Россия '!E13)*1.3 -> 8437 | G13: =('Плитка-производство Россия '!F13)*1.3 -> 9607 | H13: =('Плитка-производство Россия '!G13)*1.3 -> 10517
A14: Возрождение | C14: 300xL,350хL,400xL | D14: =('Плитка-производство Россия '!C16)*1.15 -> 6083.5 | E14: =('Плитка-производство Россия '!D16)*1.15 -> 7233.5 | F14: =('Плитка-производство Россия '!E16)*1.15 -> 8843.5 | G14: =('Плитка-производство Россия '!F16)*1.15 -> 10108.5 | H14: =('Плитка-производство Россия '!G16)*1.15 -> 11488.5
C15: 500xL,600хL | D15: =('Плитка-производство Россия '!C16)*1.2 -> 6348 | E15: =('Плитка-производство Россия '!D16)*1.2 -> 7548 | F15: =('Плитка-производство Россия '!E16)*1.2 -> 9228 | G15: =('Плитка-производство Россия '!F16)*1.2 -> 10548 | H15: =('Плитка-производство Россия '!G16)*1.2 -> 11988
C16: 700xL | D16: =('Плитка-производство Россия '!C16)*1.3 -> 6877 | E16: =('Плитка-производство Россия '!D16)*1.3 -> 8177 | F16: =('Плитка-производство Россия '!E16)*1.3 -> 9997 | G16: =('Плитка-производство Россия '!F16)*1.3 -> 11427 | H16: =('Плитка-производство Россия '!G16)*1.3 -> 12987
A17: Гранатовый амфиболит Нигозеро | C17: 300xL,350хL,400xL | D17: =('Плитка-производство Россия '!C19)*1.15 -> 6543.5 | E17: =('Плитка-производство Россия '!D19)*1.15 -> 8153.5 | F17: =('Плитка-производство Россия '!E19)*1.15 -> 9993.5 | G17: =('Плитка-производство Россия '!F19)*1.15 -> 11488.5 | H17: =('Плитка-производство Россия '!G19)*1.15 -> 12868.5
C18: 500xL,600хL | D18: =('Плитка-производство Россия '!C19)*1.2 -> 6828 | E18: =('Плитка-производство Россия '!D19)*1.2 -> 8508 | F18: =('Плитка-производство Россия '!E19)*1.2 -> 10428 | G18: =('Плитка-производство Россия '!F19)*1.2 -> 11988 | H18: =('Плитка-производство Россия '!G19)*1.2 -> 13428
C19: 700xL | D19: =('Плитка-производство Россия '!C19)*1.3 -> 7397 | E19: =('Плитка-производство Россия '!D19)*1.3 -> 9217 | F19: =('Плитка-производство Россия '!E19)*1.3 -> 11297 | G19: =('Плитка-производство Россия '!F19)*1.3 -> 12987 | H19: =('Плитка-производство Россия '!G19)*1.3 -> 14547
A20: Дымовский (Елизовский) | C20: 300xL,350хL,400xL | D20: =('Плитка-производство Россия '!C22)*1.15 -> 6083.5 | E20: =5990*1.15 -> 6888.5 | F20: =('Плитка-производство Россия '!E22)*1.15 -> 8843.5 | G20: =('Плитка-производство Россия '!F22)*1.15 -> 10108.5 | H20: =('Плитка-производство Россия '!G22)*1.15 -> 11488.5
C21: 500xL,600хL | D21: =('Плитка-производство Россия '!C22)*1.2 -> 6348 | E21: =5990*1.2 -> 7188 | F21: =('Плитка-производство Россия '!E22)*1.2 -> 9228 | G21: =('Плитка-производство Россия '!F22)*1.2 -> 10548 | H21: =('Плитка-производство Россия '!G22)*1.2 -> 11988
C22: 700xL | D22: =('Плитка-производство Россия '!C22)*1.3 -> 6877 | E22: =5990*1.3 -> 7787 | F22: =('Плитка-производство Россия '!E22)*1.3 -> 9997 | G22: =('Плитка-производство Россия '!F22)*1.3 -> 11427 | H22: =('Плитка-производство Россия '!G22)*1.3 -> 12987
A23: Балтийский | C23: 300xL,350хL,400xL | D23: =('Плитка-производство Россия '!C25)*1.15 -> 6313.5 | E23: =('Плитка-производство Россия '!D25)*1.15 -> 7463.5 | F23: =('Плитка-производство Россия '!E25)*1.15 -> 9073.5 | G23: =('Плитка-производство Россия '!F25)*1.15 -> 10338.5 | H23: =('Плитка-производство Россия '!G25)*1.15 -> 11718.5
C24: 500xL,600хL | D24: =('Плитка-производство Россия '!C25)*1.2 -> 6588 | E24: =('Плитка-производство Россия '!D25)*1.2 -> 7788 | F24: =('Плитка-производство Россия '!E25)*1.2 -> 9468 | G24: =('Плитка-производство Россия '!F25)*1.2 -> 10788 | H24: =('Плитка-производство Россия '!G25)*1.2 -> 12228
C25: 700xL | D25: =('Плитка-производство Россия '!C25)*1.3 -> 7137 | E25: =('Плитка-производство Россия '!D25)*1.3 -> 8437 | F25: =('Плитка-производство Россия '!E25)*1.3 -> 10257 | G25: =('Плитка-производство Россия '!F25)*1.3 -> 11687 | H25: =('Плитка-производство Россия '!G25)*1.3 -> 13247
A26: Жалгыз | C26: 300xL,350хL,400xL | D26: =('Плитка-производство Россия '!C28)*1.15 -> 4243.5 | E26: =('Плитка-производство Россия '!D28)*1.15 -> 4933.5 | F26: =('Плитка-производство Россия '!E28)*1.15 -> 5738.5 | G26: =('Плитка-производство Россия '!F28)*1.15 -> 6428.5 | H26: =('Плитка-производство Россия '!G28)*1.15 -> 7578.5
C27: 500xL,600хL | D27: =('Плитка-производство Россия '!C28)*1.2 -> 4428 | E27: =('Плитка-производство Россия '!D28)*1.2 -> 5148 | F27: =('Плитка-производство Россия '!E28)*1.2 -> 5988 | G27: =('Плитка-производство Россия '!F28)*1.2 -> 6708 | H27: =('Плитка-производство Россия '!G28)*1.2 -> 7908
C28: 700xL | D28: =('Плитка-производство Россия '!C28)*1.3 -> 4797 | E28: =('Плитка-производство Россия '!D28)*1.3 -> 5577 | F28: =('Плитка-производство Россия '!E28)*1.3 -> 6487 | G28: =('Плитка-производство Россия '!F28)*1.3 -> 7267 | H28: =('Плитка-производство Россия '!G28)*1.3 -> 8567
A29: Жельтау-1 | C29: 300xL,350хL,400xL | D29: =('Плитка-производство Россия '!C31)*1.15 -> 5508.5 | E29: =('Плитка-производство Россия '!D31)*1.15 -> 6428.5 | F29: =('Плитка-производство Россия '!E31)*1.15 -> 7578.5 | G29: =('Плитка-производство Россия '!F31)*1.15 -> 8613.5 | H29: =('Плитка-производство Россия '!G31)*1.15 -> 9303.5
C30: 500xL,600хL | D30: =('Плитка-производство Россия '!C31)*1.2 -> 5748 | E30: =('Плитка-производство Россия '!D31)*1.2 -> 6708 | F30: =('Плитка-производство Россия '!E31)*1.2 -> 7908 | G30: =('Плитка-производство Россия '!F31)*1.2 -> 8988 | H30: =('Плитка-производство Россия '!G31)*1.2 -> 9708
C31: 700xL | D31: =('Плитка-производство Россия '!C31)*1.3 -> 6227 | E31: =('Плитка-производство Россия '!D31)*1.3 -> 7267 | F31: =('Плитка-производство Россия '!E31)*1.3 -> 8567 | G31: =('Плитка-производство Россия '!F31)*1.3 -> 9737 | H31: =('Плитка-производство Россия '!G31)*1.3 -> 10517
A32: Жельтау-2А | C32: 300xL,350хL,400xL | D32: =('Плитка-производство Россия '!C34)*1.15 -> 5508.5 | E32: =('Плитка-производство Россия '!D34)*1.15 -> 6428.5 | F32: =('Плитка-производство Россия '!E34)*1.15 -> 7578.5 | G32: =('Плитка-производство Россия '!F34)*1.15 -> 8613.5 | H32: =('Плитка-производство Россия '!G34)*1.15 -> 9303.5
C33: 500xL,600хL | D33: =('Плитка-производство Россия '!C34)*1.2 -> 5748 | E33: =('Плитка-производство Россия '!D34)*1.2 -> 6708 | F33: =('Плитка-производство Россия '!E34)*1.2 -> 7908 | G33: =('Плитка-производство Россия '!F34)*1.2 -> 8988 | H33: =('Плитка-производство Россия '!G34)*1.2 -> 9708
C34: 700xL | D34: =('Плитка-производство Россия '!C34)*1.3 -> 6227 | E34: =('Плитка-производство Россия '!D34)*1.3 -> 7267 | F34: =('Плитка-производство Россия '!E34)*1.3 -> 8567 | G34: =('Плитка-производство Россия '!F34)*1.3 -> 9737 | H34: =('Плитка-производство Россия '!G34)*1.3 -> 10517
A35: Лабрадорит Волга Блю | C35: 300xL,350хL,400xL | D35: =('Плитка-производство Россия '!C37)*1.15 -> 11488.5 | E35: =('Плитка-производство Россия '!D37)*1.15 -> 14133.5 | F35: =('Плитка-производство Россия '!E37)*1.15 -> 18388.5 | G35: =('Плитка-производство Россия '!F37)*1.15 -> 21838.5 | H35: =('Плитка-производство Россия '!G37)*1.15 -> 25173.5
C36: 500xL,600хL | D36: =('Плитка-производство Россия '!C37)*1.2 -> 11988 | E36: =('Плитка-производство Россия '!D37)*1.2 -> 14748 | F36: =('Плитка-производство Россия '!E37)*1.2 -> 19188 | G36: =('Плитка-производство Россия '!F37)*1.2 -> 22788 | H36: =('Плитка-производство Россия '!G37)*1.2 -> 26268
C37: 700xL | D37: =('Плитка-производство Россия '!C37)*1.3 -> 12987 | E37: =('Плитка-производство Россия '!D37)*1.3 -> 15977 | F37: =('Плитка-производство Россия '!E37)*1.3 -> 20787 | G37: =('Плитка-производство Россия '!F37)*1.3 -> 24687 | H37: =('Плитка-производство Россия '!G37)*1.3 -> 28457
A38: Камбулатовский | C38: 300xL,350хL,400xL | D38: =('Плитка-производство Россия '!C40)*1.15 -> 4128.5 | E38: =('Плитка-производство Россия '!D40)*1.15 -> 4933.5 | F38: =('Плитка-производство Россия '!E40)*1.15 -> 5853.5 | G38: =('Плитка-производство Россия '!F40)*1.15 -> 6658.5 | H38: =('Плитка-производство Россия '!G40)*1.15 -> 7233.5
C39: 500xL,600хL | D39: =('Плитка-производство Россия '!C40)*1.2 -> 4308 | E39: =('Плитка-производство Россия '!D40)*1.2 -> 5148 | F39: =('Плитка-производство Россия '!E40)*1.2 -> 6108 | G39: =('Плитка-производство Россия '!F40)*1.2 -> 6948 | H39: =('Плитка-производство Россия '!G40)*1.2 -> 7548
C40: 700xL | D40: =('Плитка-производство Россия '!C40)*1.3 -> 4667 | E40: =('Плитка-производство Россия '!D40)*1.3 -> 5577 | F40: =('Плитка-производство Россия '!E40)*1.3 -> 6617 | G40: =('Плитка-производство Россия '!F40)*1.3 -> 7527 | H40: =('Плитка-производство Россия '!G40)*1.3 -> 8177
A41: Капустинский | C41: 300xL,350хL,400xL | D41: =('Плитка-производство Россия '!C43)*1.15 -> 8038.5 | E41: =('Плитка-производство Россия '!D43)*1.15 -> 9418.5 | F41: =('Плитка-производство Россия '!E43)*1.15 -> 11488.5 | G41: =('Плитка-производство Россия '!F43)*1.15 -> 13788.5 | H41: =('Плитка-производство Россия '!G43)*1.15 -> 16088.5
C42: 500xL,600хL | D42: =('Плитка-производство Россия '!C43)*1.2 -> 8388 | E42: =('Плитка-производство Россия '!D43)*1.2 -> 9828 | F42: =('Плитка-производство Россия '!E43)*1.2 -> 11988 | G42: =('Плитка-производство Россия '!F43)*1.2 -> 14388 | H42: =('Плитка-производство Россия '!G43)*1.2 -> 16788
C43: 700xL | D43: =('Плитка-производство Россия '!C43)*1.3 -> 9087 | E43: =('Плитка-производство Россия '!D43)*1.3 -> 10647 | F43: =('Плитка-производство Россия '!E43)*1.3 -> 12987 | G43: =('Плитка-производство Россия '!F43)*1.3 -> 15587 | H43: =('Плитка-производство Россия '!G43)*1.3 -> 18187
A44: Куртинский* | C44: 300xL,350хL,400xL | D44: =('Плитка-производство Россия '!C46)*1.15 -> 4358.5 | E44: =('Плитка-производство Россия '!D46)*1.15 -> 5163.5 | F44: =('Плитка-производство Россия '!E46)*1.15 -> 6083.5 | G44: =('Плитка-производство Россия '!F46)*1.15 -> 6888.5 | H44: =('Плитка-производство Россия '!G46)*1.15 -> 7463.5
C45: 500xL,600хL | D45: =('Плитка-производство Россия '!C46)*1.2 -> 4548 | E45: =('Плитка-производство Россия '!D46)*1.2 -> 5388 | F45: =('Плитка-производство Россия '!E46)*1.2 -> 6348 | G45: =('Плитка-производство Россия '!F46)*1.2 -> 7188 | H45: =('Плитка-производство Россия '!G46)*1.2 -> 7788
C46: 700xL | D46: =('Плитка-производство Россия '!C46)*1.3 -> 4927 | E46: =('Плитка-производство Россия '!D46)*1.3 -> 5837 | F46: =('Плитка-производство Россия '!E46)*1.3 -> 6877 | G46: =('Плитка-производство Россия '!F46)*1.3 -> 7787 | H46: =('Плитка-производство Россия '!G46)*1.3 -> 8437
A47: Мансуровский | C47: 300xL,350хL,400xL | D47: =('Плитка-производство Россия '!C49)*1.15 -> 4876 | E47: =('Плитка-производство Россия '!D49)*1.15 -> 5911 | F47: =('Плитка-производство Россия '!E49)*1.15 -> 7061 | G47: =('Плитка-производство Россия '!F49)*1.15 -> 7923.5 | H47: =('Плитка-производство Россия '!G49)*1.15 -> 8786
C48: 500xL,600хL | D48: =('Плитка-производство Россия '!C49)*1.2 -> 5088 | E48: =('Плитка-производство Россия '!D49)*1.2 -> 6168 | F48: =('Плитка-производство Россия '!E49)*1.2 -> 7368 | G48: =('Плитка-производство Россия '!F49)*1.2 -> 8268 | H48: =('Плитка-производство Россия '!G49)*1.2 -> 9168
C49: 700xL | D49: =('Плитка-производство Россия '!C49)*1.3 -> 5512 | E49: =('Плитка-производство Россия '!D49)*1.3 -> 6682 | F49: =('Плитка-производство Россия '!E49)*1.3 -> 7982 | G49: =('Плитка-производство Россия '!F49)*1.3 -> 8957 | H49: =('Плитка-производство Россия '!G49)*1.3 -> 9932
A50: Неро Бухара | C50: 300xL,350хL,400xL | D50: =('Плитка-производство Россия '!C52)*1.15 -> 5163.5 | E50: =('Плитка-производство Россия '!D52)*1.15 -> 6198.5 | F50: =('Плитка-производство Россия '!E52)*1.15 -> 7118.5 | G50: =('Плитка-производство Россия '!F52)*1.15 -> 8268.5 | H50: =('Плитка-производство Россия '!G52)*1.15 -> 9993.5
C51: 500xL,600хL | D51: =('Плитка-производство Россия '!C52)*1.2 -> 5388 | E51: =('Плитка-производство Россия '!D52)*1.2 -> 6468 | F51: =('Плитка-производство Россия '!E52)*1.2 -> 7428 | G51: =('Плитка-производство Россия '!F52)*1.2 -> 8628 | H51: =('Плитка-производство Россия '!G52)*1.2 -> 10428
C52: 700xL | D52: =('Плитка-производство Россия '!C52)*1.3 -> 5837 | E52: =('Плитка-производство Россия '!D52)*1.3 -> 7007 | F52: =('Плитка-производство Россия '!E52)*1.3 -> 8047 | G52: =('Плитка-производство Россия '!F52)*1.3 -> 9347 | H52: =('Плитка-производство Россия '!G52)*1.3 -> 11297
A53: Покостовский | C53: 300xL,350хL,400xL | D53: =('Плитка-производство Россия '!C55)*1.15 -> 6083.5 | E53: =('Плитка-производство Россия '!D55)*1.15 -> 7233.5 | F53: =('Плитка-производство Россия '!E55)*1.15 -> 8843.5 | G53: =('Плитка-производство Россия '!F55)*1.15 -> 10223.5 | H53: =('Плитка-производство Россия '!G55)*1.15 -> 11488.5
C54: 500xL,600хL | D54: =('Плитка-производство Россия '!C55)*1.2 -> 6348 | E54: =('Плитка-производство Россия '!D55)*1.2 -> 7548 | F54: =('Плитка-производство Россия '!E55)*1.2 -> 9228 | G54: =('Плитка-производство Россия '!F55)*1.2 -> 10668 | H54: =('Плитка-производство Россия '!G55)*1.2 -> 11988
C55: 700xL | D55: =('Плитка-производство Россия '!C55)*1.3 -> 6877 | E55: =('Плитка-производство Россия '!D55)*1.3 -> 8177 | F55: =('Плитка-производство Россия '!E55)*1.3 -> 9997 | G55: =('Плитка-производство Россия '!F55)*1.3 -> 11557 | H55: =('Плитка-производство Россия '!G55)*1.3 -> 12987
A56: Сибирский | C56: 300xL,350хL,400xL | D56: =('Плитка-производство Россия '!C58)*1.15 -> 4933.5 | E56: =5190*1.15 -> 5968.5 | F56: =('Плитка-производство Россия '!E58)*1.15 -> 7003.5 | G56: =('Плитка-производство Россия '!F58)*1.15 -> 8038.5 | H56: =('Плитка-производство Россия '!G58)*1.15 -> 8728.5
C57: 500xL,550xL,600хL | D57: =('Плитка-производство Россия '!C58)*1.2 -> 5148 | E57: =5190*1.2 -> 6228 | F57: =('Плитка-производство Россия '!E58)*1.2 -> 7308 | G57: =('Плитка-производство Россия '!F58)*1.2 -> 8388 | H57: =('Плитка-производство Россия '!G58)*1.2 -> 9108
C58: 650xL,700xL | D58: =('Плитка-производство Россия '!C58)*1.3 -> 5577 | E58: =5190*1.3 -> 6747 | F58: =('Плитка-производство Россия '!E58)*1.3 -> 7917 | G58: =('Плитка-производство Россия '!F58)*1.3 -> 9087 | H58: =('Плитка-производство Россия '!G58)*1.3 -> 9867
A59: Южно-Султаевский | C59: 300xL,350хL,400xL | D59: =('Плитка-производство Россия '!C61)*1.15 -> 4818.5 | E59: =('Плитка-производство Россия '!D61)*1.15 -> 5853.5 | F59: =('Плитка-производство Россия '!E61)*1.15 -> 6888.5 | G59: =('Плитка-производство Россия '!F61)*1.15 -> 7808.5 | H59: =('Плитка-производство Россия '!G61)*1.15 -> 8613.5
C60: 500xL,550xL,600хL | D60: =('Плитка-производство Россия '!C61)*1.2 -> 5028 | E60: =('Плитка-производство Россия '!D61)*1.2 -> 6108 | F60: =('Плитка-производство Россия '!E61)*1.2 -> 7188 | G60: =('Плитка-производство Россия '!F61)*1.2 -> 8148 | H60: =('Плитка-производство Россия '!G61)*1.2 -> 8988
C61: 650xL,700xL | D61: =('Плитка-производство Россия '!C61)*1.3 -> 5447 | E61: =('Плитка-производство Россия '!D61)*1.3 -> 6617 | F61: =('Плитка-производство Россия '!E61)*1.3 -> 7787 | G61: =('Плитка-производство Россия '!F61)*1.3 -> 8827 | H61: =('Плитка-производство Россия '!G61)*1.3 -> 9737
A62: Габбро Другорецкое | C62: 300xL,350хL,400xL | D62: 10490 | E62: =('Плитка-производство Россия '!D64)*1.15 -> 12638.5 | F62: =('Плитка-производство Россия '!E64)*1.15 -> 21493.5 | G62: =('Плитка-производство Россия '!F64)*1.15 -> 25633.5 | H62: =('Плитка-производство Россия '!G64)*1.15 -> 29543.5
C63: 500xL,550xL,600хL | D63: =10390*1.2 -> 12468 | E63: =('Плитка-производство Россия '!D64)*1.2 -> 13188 | F63: =('Плитка-производство Россия '!E64)*1.2 -> 22428 | G63: =('Плитка-производство Россия '!F64)*1.2 -> 26748 | H63: =('Плитка-производство Россия '!G64)*1.2 -> 30828
C64: 650xL,700xL | D64: =10390*1.3 -> 13507 | E64: =('Плитка-производство Россия '!D64)*1.3 -> 14287 | F64: =('Плитка-производство Россия '!E64)*1.3 -> 24297 | G64: =('Плитка-производство Россия '!F64)*1.3 -> 28977 | H64: =('Плитка-производство Россия '!G64)*1.3 -> 33397
A65: Примечание:
A66: 1. Цена указана за 1 квадратный метр продукции, включая упаковку и погрузку на транспортное средство клиента
A67: 2. На партии продукции более 1000 м2 предоставляются сезонные скидки
A68: 3. При заказе нестандартной длины полосы действует наценка - 20%
A69: 4. На партии продукции менее 50 м2 действует наценка - 10%
A70: 5. На партии продукции менее 25 м2 действует наценка - 20%
A71: 6. * - Цена указана за сорт "стандарт", за цвет "люкс-темный" действует наценка - 10%
A72: 7. На дополнительную услугу - переборка изделий, включая распаковку, пересортировку и повторную упаковку, действует наценка - 20%
A77: ОПТОВЫЕ ЦЕНЫ
A80: Московская обл., г. Реутов, ул. Фабричная, 4 | H80: sale@graniteh.ru
A81: тел: (495) 777-60-74, 645-70-95 / WhatsApp: (926) 746-68-07 | H81: http://www.graniteh.ru
A83: Полосы, ступени и полуслэбы гранитные собственного производства
H84: со склада в г. Реутов (1км от МКАД)
A85: Гранит | B85: Фото | C85: Ширина полос | D85: h = 20 mm | E85: h = 30 mm | F85: h = 40 mm | G85: h = 50 mm | H85: h = 60 mm
A86: Ала-Носкуа | C86: 300xL,350хL,400xL | D86: =D11+400 -> 5563.5 | E86: =E11+600 -> 6798.5 | F86: =F11+800 -> 8263.5 | G86: =G11+1000 -> 9498.5 | H86: =H11+1200 -> 10503.5
C87: 500xL,600хL | D87: =D12+400 -> 5788 | E87: =E12+600 -> 7068 | F87: =F12+800 -> 8588 | G87: =G12+1000 -> 9868 | H87: =H12+1200 -> 10908
C88: 700xL | D88: =D13+400 -> 6237 | E88: =E13+600 -> 7607 | F88: =F13+800 -> 9237 | G88: =G13+1000 -> 10607 | H88: =H13+1200 -> 11717
A89: Возрождение | C89: 300xL,350хL,400xL | D89: =D14+400 -> 6483.5 | E89: =E14+600 -> 7833.5 | F89: =F14+800 -> 9643.5 | G89: =G14+1000 -> 11108.5 | H89: =H14+1200 -> 12688.5
C90: 500xL,600хL | D90: 6748 | E90: 8148 | F90: 10028 | G90: 11548 | H90: 13188
C91: 700xL | D91: 7277 | E91: 8777 | F91: 10797 | G91: 12427 | H91: 14187
A92: Гранатовый амфиболит Нигозеро | C92: 300xL,350хL,400xL | D92: 6943.5 | E92: 8753.5 | F92: 10793.5 | G92: 12488.5 | H92: 14068.5
C93: 500xL,600хL | D93: 7228 | E93: 9108 | F93: 11228 | G93: 12988 | H93: 14628
C94: 700xL | D94: 7797 | E94: 9817 | F94: 12097 | G94: 13987 | H94: 15747
A95: Дымовский (Елизовский) | C95: 300xL,350хL,400xL | D95: 6483.5 | E95: 7488.5 | F95: 9643.5 | G95: 11108.5 | H95: 12688.5
C96: 500xL,600хL | D96: 6748 | E96: 7788 | F96: 10028 | G96: 11548 | H96: 13188
C97: 700xL | D97: 7277 | E97: 8387 | F97: 10797 | G97: 12427 | H97: 14187
A98: Балтийский | C98: 300xL,350хL,400xL | D98: 6713.5 | E98: 8063.5 | F98: 9873.5 | G98: 11338.5 | H98: 12918.5
C99: 500xL,600хL | D99: 6988 | E99: 8388 | F99: 10268 | G99: 11788 | H99: 13428
C100: 700xL | D100: 7537 | E100: 9037 | F100: 11057 | G100: 12687 | H100: 14447
A101: Жалгыз | C101: 300xL,350хL,400xL | D101: 4643.5 | E101: 5533.5 | F101: 6538.5 | G101: 7428.5 | H101: 8778.5
C102: 500xL,600хL | D102: 4828 | E102: 5748 | F102: 6788 | G102: 7708 | H102: 9108
C103: 700xL | D103: 5197 | E103: 6177 | F103: 7287 | G103: 8267 | H103: 9767
A104: Жельтау-1 | C104: 300xL,350хL,400xL | D104: 5908.5 | E104: 7028.5 | F104: 8378.5 | G104: 9613.5 | H104: 10503.5
C105: 500xL,600хL | D105: 6148 | E105: 7308 | F105: 8708 | G105: 9988 | H105: 10908
C106: 700xL | D106: 6627 | E106: 7867 | F106: 9367 | G106: 10737 | H106: 11717
A107: Жельтау-2А | C107: 300xL,350хL,400xL | D107: 5908.5 | E107: 7028.5 | F107: 8378.5 | G107: 9613.5 | H107: 10503.5
C108: 500xL,600хL | D108: 6148 | E108: 7308 | F108: 8708 | G108: 9988 | H108: 10908
C109: 700xL | D109: 6627 | E109: 7867 | F109: 9367 | G109: 10737 | H109: 11717
A110: Лабрадорит Волга Блю | C110: 300xL,350хL,400xL | D110: 11888.5 | E110: 14733.5 | F110: 19188.5 | G110: 22838.5 | H110: 26373.5
C111: 500xL,600хL | D111: 12388 | E111: 15348 | F111: 19988 | G111: 23788 | H111: 27468
C112: 700xL | D112: 13387 | E112: 16577 | F112: 21587 | G112: 25687 | H112: 29657
A113: Камбулатовский | C113: 300xL,350хL,400xL | D113: 4528.5 | E113: 5533.5 | F113: 6653.5 | G113: 7658.5 | H113: 8433.5
C114: 500xL,600хL | D114: 4708 | E114: 5748 | F114: 6908 | G114: 7948 | H114: 8748
C115: 700xL | D115: 5067 | E115: 6177 | F115: 7417 | G115: 8527 | H115: 9377
A116: Капустинский | C116: 300xL,350хL,400xL | D116: 8438.5 | E116: 10018.5 | F116: 12288.5 | G116: 14788.5 | H116: 17288.5
C117: 500xL,600хL | D117: 8788 | E117: 10428 | F117: 12788 | G117: 15388 | H117: 17988
C118: 700xL | D118: 9487 | E118: 11247 | F118: 13787 | G118: 16587 | H118: 19387
A119: Куртинский* | C119: 300xL,350хL,400xL | D119: 4758.5 | E119: 5763.5 | F119: 6883.5 | G119: 7888.5 | H119: 8663.5
C120: 500xL,600хL | D120: 4948 | E120: 5988 | F120: 7148 | G120: 8188 | H120: 8988
C121: 700xL | D121: 5327 | E121: 6437 | F121: 7677 | G121: 8787 | H121: 9637
A122: Мансуровский | C122: 300xL,350хL,400xL | D122: 5276 | E122: 6511 | F122: 7861 | G122: 8923.5 | H122: 9986
C123: 500xL,600хL | D123: 5488 | E123: 6768 | F123: 8168 | G123: 9268 | H123: 10368
C124: 700xL | D124: 5912 | E124: 7282 | F124: 8782 | G124: 9957 | H124: 11132
A125: Неро Бухара | C125: 300xL,350хL,400xL | D125: 5563.5 | E125: 6798.5 | F125: 7918.5 | G125: 9268.5 | H125: 11193.5
C126: 500xL,600хL | D126: 5788 | E126: 7068 | F126: 8228 | G126: 9628 | H126: 11628
C127: 700xL | D127: 6237 | E127: 7607 | F127: 8847 | G127: 10347 | H127: 12497
A128: Покостовский | C128: 300xL,350хL,400xL | D128: 6483.5 | E128: 7833.5 | F128: 9643.5 | G128: 11223.5 | H128: 12688.5
C129: 500xL,600хL | D129: 6748 | E129: 8148 | F129: 10028 | G129: 11668 | H129: 13188
C130: 700xL | D130: 7277 | E130: 8777 | F130: 10797 | G130: 12557 | H130: 14187
A131: Сибирский | C131: 300xL,350хL,400xL | D131: 5333.5 | E131: 6568.5 | F131: 7803.5 | G131: 9038.5 | H131: 9928.5
C132: 500xL,550xL,600хL | D132: 5548 | E132: 6828 | F132: 8108 | G132: 9388 | H132: 10308
C133: 650xL,700xL | D133: 5977 | E133: 7347 | F133: 8717 | G133: 10087 | H133: 11067
A134: Южно-Султаевский | C134: 300xL,350хL,400xL | D134: 5218.5 | E134: 6453.5 | F134: 7688.5 | G134: 8808.5 | H134: 9813.5
C135: 500xL,550xL,600хL | D135: 5428 | E135: 6708 | F135: 7988 | G135: 9148 | H135: 10188
C136: 650xL,700xL | D136: 5847 | E136: 7217 | F136: 8587 | G136: 9827 | H136: 10937
A137: Габбро Другорецкое | C137: 300xL,350хL,400xL | D137: 10890 | E137: 13238.5 | F137: 22293.5 | G137: 26633.5 | H137: 30743.5
C138: 500xL,550xL,600хL | D138: 12868 | E138: 13788 | F138: 23228 | G138: 27748 | H138: 32028
C139: 650xL,700xL | D139: 13907 | E139: 14887 | F139: 25097 | G139: 29977 | H139: 34597
A140: Примечание:
A141: 1. Цена указана за 1 квадратный метр продукции, включая упаковку и погрузку на транспортное средство клиента
A142: 2. На партии продукции более 1000 м2 предоставляются сезонные скидки
A143: 3. При заказе нестандартной длины полосы действует наценка - 20%
A144: 4. На партии продукции менее 50 м2 действует наценка - 10%
A145: 5. На партии продукции менее 25 м2 действует наценка - 20%
A146: 6. * - Цена указана за сорт "стандарт", за цвет "люкс-темный" действует наценка - 10%
A147: 7. На дополнительную услугу - переборка изделий, включая распаковку, пересортировку и повторную упаковку, действует наценка - 20%

Sheet Слэбы гранитные
A4: ОПТОВЫЕ ЦЕНЫ | I4: Дата | J4: =TODAY() -> 2025-06-01
I5: Курс USD | J5: 90
A6: Московская обл., г. Реутов, ул. Фабричная, 4 | J6: sale@graniteh.ru
A7: тел: (495) 777-60-74, 645-70-95 / WhatsApp: (926) 746-68-07 | J7: http://www.graniteh.ru
A8: Слэбы гранитные, собственного производства | J8: со склада в г. Воскресенск (88км от МКАД)
A9: Ала-Носкуа | C9: Фактура поверхности: полированная, шлифованная, лощеная, термообработанная
C10: h=20мм | E10: h=30мм | G10: h=40мм | I10: h=50мм
C11: ='Плитка-производство Россия '!C13*1.35 -> 6061.5 | E11: ='Плитка-производство Россия '!D13*1.35 -> 7276.5 | G11: ='Плитка-производство Россия '!E13*1.35 -> 8761.5 | I11: ='Плитка-производство Россия '!F13*1.35 -> 9976.5
A12: Возрождение | C12: Фактура поверхности: полированная, шлифованная, лощеная, термообработанная
C13: h=20мм | E13: h=30мм | G13: h=40мм | I13: h=50мм
C14: ='Плитка-производство Россия '!C16*1.35 -> 7141.5 | E14: ='Плитка-производство Россия '!D16*1.35 -> 8491.5 | G14: ='Плитка-производство Россия '!E16*1.35 -> 10381.5 | I14: ='Плитка-производство Россия '!F16*1.35 -> 11866.5
A15: Гранатовый амфиболит Нигозеро | C15: Фактура поверхности: полированная, шлифованная, лощеная, термообработанная
C16: h=20мм | E16: h=30мм | G16: h=40мм | I16: h=50мм
C17: ='Плитка-производство Россия '!C19*1.35 -> 7681.5 | E17: ='Плитка-производство Россия '!D19*1.35 -> 9571.5 | G17: ='Плитка-производство Россия '!E19*1.35 -> 11731.5 | I17: ='Плитка-производство Россия '!F19*1.35 -> 13486.5
A18: Дымовский (сорт Экстра) | C18: Фактура поверхности: полированная, шлифованная, лощеная, термообработанная
C19: h=20мм | E19: h=30мм | G19: h=40мм | I19: h=50мм
C20: ='Плитка-производство Россия '!C22*1.35 -> 7141.5 | E20: =5990*1.35 -> 8086.5 | G20: ='Плитка-производство Россия '!E22*1.35 -> 10381.5 | I20: ='Плитка-производство Россия '!F22*1.35 -> 11866.5
A21: Балтийский | C21: Фактура поверхности: полированная, шлифованная, лощеная, термообработанная
C22: h=20мм | E22: h=30мм | G22: h=40мм | I22: h=50мм
C23: ='Плитка-производство Россия '!C25*1.35 -> 7411.5 | E23: ='Плитка-производство Россия '!D25*1.35 -> 8761.5 | G23: ='Плитка-производство Россия '!E25*1.35 -> 10651.5 | I23: ='Плитка-производство Россия '!F25*1.35 -> 12136.5
A24: Жельтау-1 | C24: Фактура поверхности: полированная, шлифованная, лощеная, термообработанная
C25: h=20мм | E25: h=30мм | G25: h=40мм | I25: h=50мм
C26: ='Плитка-производство Россия '!C31*1.35 -> 6466.5 | E26: ='Плитка-производство Россия '!D31*1.35 -> 7546.5 | G26: ='Плитка-производство Россия '!E31*1.35 -> 8896.5 | I26: ='Плитка-производство Россия '!F31*1.35 -> 10111.5
A27: Жельтау-2А | C27: Фактура поверхности: полированная, шлифованная, лощеная, термообработанная
C28: h=20мм | E28: h=30мм | G28: h=40мм | I28: h=50мм
C29: ='Плитка-производство Россия '!C34*1.35 -> 6466.5 | E29: ='Плитка-производство Россия '!D34*1.35 -> 7546.5 | G29: ='Плитка-производство Россия '!E34*1.35 -> 8896.5 | I29: ='Плитка-производство Россия '!F34*1.35 -> 10111.5
A30: Капустинский | C30: Фактура поверхности: полированная, шлифованная, лощеная, термообработанная
C31: h=20мм | E31: h=30мм | G31: h=40мм | I31: h=50мм
C32: ='Плитка-производство Россия '!C43*1.35 -> 9436.5 | E32: ='Плитка-производство Россия '!D43*1.35 -> 11056.5 | G32: ='Плитка-производство Россия '!E43*1.35 -> 13486.5 | I32: ='Плитка-производство Россия '!F43*1.35 -> 16186.5
A33: Куртинский* | C33: Фактура поверхности: полированная, шлифованная, лощеная, термообработанная
C34: h=20мм | E34: h=30мм | G34: h=40мм | I34: h=50мм
C35: ='Плитка-производство Россия '!C46*1.35 -> 5116.5 | E35: ='Плитка-производство Россия '!D46*1.35 -> 6061.5 | G35: ='Плитка-производство Россия '!E46*1.35 -> 7141.5 | I35: ='Плитка-производство Россия '!F46*1.35 -> 8086.5
A36: Мансуровский | C36: Фактура поверхности: полированная, шлифованная, лощеная, термообработанная
C37: h=20мм | E37: h=30мм | G37: h=40мм | I37: h=50мм
C38: ='Плитка-производство Россия '!C49*1.35 -> 5724 | E38: ='Плитка-производство Россия '!D49*1.35 -> 6939 | G38: ='Плитка-производство Россия '!E49*1.35 -> 8289 | I38: ='Плитка-производство Россия '!F49*1.35 -> 9301.5
A39: Неро Бухара | C39: Фактура поверхности: полированная, шлифованная, лощеная, термообработанная
C40: h=20мм | E40: h=30мм | G40: h=40мм | I40: h=50мм
C41: ='Плитка-производство Россия '!C52*1.35 -> 6061.5 | E41: ='Плитка-производство Россия '!D52*1.35 -> 7276.5 | G41: ='Плитка-производство Россия '!E52*1.35 -> 8356.5 | I41: ='Плитка-производство Россия '!F52*1.35 -> 9706.5
A42: Южно-Султаевский | C42: Фактура поверхности: полированная, шлифованная, лощеная, термообработанная
C43: h=20мм | E43: h=30мм | G43: h=40мм | I43: h=50мм
C44: ='Плитка-производство Россия '!C61*1.35 -> 5656.5 | E44: ='Плитка-производство Россия '!D61*1.35 -> 6871.5 | G44: ='Плитка-производство Россия '!E61*1.35 -> 8086.5 | I44: ='Плитка-производство Россия '!F61*1.35 -> 9166.5
A45: Примечание:
A46: 1. Цена указана за 1 квадратный метр продукции, включая упаковку и погрузку на транспортное средство клиента
A47: 2. На партии продукции более 1000 м2 предоставляются скидки
A48: 3. На партии продукции менее 10 м2 действует наценка - 10%
A49: 4. На партии продукции более 10 м2, но менее 25 м2 действует наценка - 5%
A50: 5. В случае значительного изменения курсов валют, при расчете стоимости применяется текущий биржевой курс доллара США
A51: 6. На дополнительную услугу - переборка изделий, включая распаковку, пересортировку и повторную упаковку, действует наценка - 20%
A55: ОПТОВЫЕ ЦЕНЫ
I57: Дата | J57: =TODAY() -> 2025-06-01
A59: Московская обл., г. Реутов, ул. Фабричная, 4 | J59: sale@graniteh.ru
A60: тел: (495) 777-60-74, 645-70-95 / WhatsApp: (926) 746-68-07 | J60: http://www.graniteh.ru
A61: Слэбы гранитные, производство - Индия, Китай (высший сорт) | J61: со склада в Москве (500 м от МКАД)
A62: Абсолют Блек (Absolute Black) СКИДКА 15% | C62: h=20мм | G62: h=30мм
C63: полировка | E63: термо | G63: полировка | I63: термо
C64: =(J5*Лист4!C9/30)*0.85 -> 9180 | E64: - | G64: =(J5*Лист4!G9/30)*0.85 -> 13005 | I64: -
A66: Слэбы гранитные, собственного производства | J66: со склада в Москве (500 м от МКАД)
A67: Ала-Носкуа | C67: Фактура поверхности: полированная, шлифованная, лощеная, термообработанная
C68: h=20мм | E68: h=30мм | G68: h=40мм | I68: h=50мм
C69: =C11+400 -> 6461.5 | E69: =E11+600 -> 7876.5 | G69: =G11+800 -> 9561.5 | I69: =I11+1000 -> 10976.5
A70: Возрождение | C70: Фактура поверхности: полированная, шлифованная, лощеная, термообработанная
C71: h=20мм | E71: h=30мм | G71: h=40мм | I71: h=50мм
C72: =C14+400 -> 7541.5 | E72: =E14+600 -> 9091.5 | G72: =G14+800 -> 11181.5 | I72: =I14+1000 -> 12866.5
A73: Гранатовый амфиболит Нигозеро | C73: Фактура поверхности: полированная, шлифованная, лощеная, термообработанная
C74: h=20мм | E74: h=30мм | G74: h=40мм | I74: h=50мм
C75: =C17+400 -> 8081.5 | E75: =E17+600 -> 10171.5 | G75: =G17+800 -> 12531.5 | I75: =I17+1000 -> 14486.5
A76: Дымовский (сорт Экстра) | C76: Фактура поверхности: полированная, шлифованная, лощеная, термообработанная
C77: h=20мм | E77: h=30мм | G77: h=40мм | I77: h=50мм
C78: =C20+400 -> 7541.5 | E78: =E20+600 -> 8686.5 | G78: =G20+800 -> 11181.5 | I78: =I20+1000 -> 12866.5
A79: Балтийский | C79: Фактура поверхности: полированная, шлифованная, лощеная, термообработанная
C80: h=20мм | E80: h=30мм | G80: h=40мм | I80: h=50мм
C81: =C23+400 -> 7811.5 | E81: =E23+600 -> 9361.5 | G81: =G23+800 -> 11451.5 | I81: =I23+1000 -> 13136.5
A82: Жельтау-1 | C82: Фактура поверхности: полированная, шлифованная, лощеная, термообработанная
C83: h=20мм | E83: h=30мм | G83: h=40мм | I83: h=50мм
C84: =C26+400 -> 6866.5 | E84: =E26+600 -> 8146.5 | G84: =G26+800 -> 9696.5 | I84: =I26+1000 -> 11111.5
A85: Жельтау-2А | C85: Фактура поверхности: полированная, шлифованная, лощеная, термообработанная
C86: h=20мм | E86: h=30мм | G86: h=40мм | I86: h=50мм
C87: =C29+400 -> 6866.5 | E87: =E29+600 -> 8146.5 | G87: =G29+800 -> 9696.5 | I87: =I29+1000 -> 11111.5
A88: Капустинский | C88: Фактура поверхности: полированная, шлифованная, лощеная, термообработанная
C89: h=20мм | E89: h=30мм | G89: h=40мм | I89: h=50мм
C90: =C32+400 -> 9836.5 | E90: =E32+600 -> 11656.5 | G90: =G32+800 -> 14286.5 | I90: =I32+1000 -> 17186.5
A91: Калливолампи | C91: Фактура поверхности: полированная, шлифованная, лощеная, термообработанная
C92: h=20мм | E92: h=30мм | G92: h=40мм | I92: h=50мм
E93: 9990
A94: Куртинский* | C94: Фактура поверхности: полированная, шлифованная, лощеная, термообработанная
C95: h=20мм | E95: h=30мм | G95: h=40мм | I95: h=50мм
C96: =C35+400 -> 5516.5 | E96: =E35+600 -> 6661.5 | G96: =G35+800 -> 7941.5 | I96: =I35+1000 -> 9086.5
A97: Мансуровский | C97: Фактура поверхности: полированная, шлифованная, лощеная, термообработанная
C98: h=20мм | E98: h=30мм | G98: h=40мм | I98: h=50мм
C99: =C38+400 -> 6124 | E99: =E38+600 -> 7539 | G99: =G38+800 -> 9089 | I99: =I38+1000 -> 10301.5
A100: Неро Бухара | C100: Фактура поверхности: полированная, шлифованная, лощеная, термообработанная
C101: h=20мм | E101: h=30мм | G101: h=40мм | I101: h=50мм
C102: =C41+400 -> 6461.5 | E102: =E41+600 -> 7876.5 | G102: =G41+800 -> 9156.5 | I102: =I41+1000 -> 10706.5
A103: Южно-Султаевский | C103: Фактура поверхности: полированная, шлифованная, лощеная, термообработанная
C104: h=20мм | E104: h=30мм | G104: h=40мм | I104: h=50мм
C105: =C44+400 -> 6056.5 | E105: =E44+600 -> 7471.5 | G105: =G44+800 -> 8886.5 | I105: =I44+1000 -> 10166.5
A106: Примечание:
A107: 1. Цена указана за 1 квадратный метр продукции, включая упаковку и погрузку на транспортное средство клиента
A108: 2. На партии продукции более 1000 м2 предоставляются скидки
A109: 3. На партии продукции менее 10 м2 действует наценка - 10%
A110: 4. На партии продукции более 10 м2, но менее 25 м2 действует наценка - 5%
A111: 5. В случае значительного изменения курсов валют, при расчете стоимости применяется текущий биржевой курс доллара США
A112: 6. На дополнительную услугу - переборка изделий, включая распаковку, пересортировку и повторную упаковку, действует наценка - 20%

Sheet Лист4 (hidden)
A7: Абсолют | C7: h=20мм | G7: h=30мм
C8: полировка | E8: термо | G8: полировка | I8: термо
C9: 3600 | G9: 5100
A10: Royal White "Кантри" G603 | C10: h=20мм | G10: h=30мм
C11: полировка | E11: термо | G11: полировка | I11: термо
C12: - | I12: 1500

Sheet Брусчатка
A3: ОПТОВЫЕ ЦЕНЫ | H3: Дата | I3: =TODAY() -> 2025-06-01
A7: Московская обл., г. Реутов, ул. Фабричная, 4 | I7: sale@graniteh.ru
A8: тел: (495) 777-60-74, 645-70-95 / WhatsApp: (926) 746-68-07 | I8: http://www.graniteh.ru
A10: Брусчатка гранитная, пилено-колотая собственного производства | I10: со склада в г. Воскресенск (88км от МКАД)
A12: Все виды российских гранитов | D12: Пилено-колотая
D13: Термообработанная | I13: 1990р.
D14: 100х100х30
A17: Брусчатка полнопиленая гранитная собственного производства | I17: со склада в г. Воскресенск (88км от МКАД)
A18: Ала-Носкуа | D18: Полнопиленая | G18: h=30 | H18: =CEILING('Плитка-производство Россия '!D13*0.8,10) -> 4320
D19: Термообработанная | G19: h=40 | H19: =CEILING('Плитка-производство Россия '!E13*0.7,10) -> 4550
D20: 100х200 | G20: h=50 | H20: =CEILING('Плитка-производство Россия '!F13*0.8,10) -> 5920
A21: Возрождение | D21: Полнопиленая | G21: h=30 | H21: =CEILING('Плитка-производство Россия '!D16*0.8,10) -> 5040
D22: Термообработанная | G22: h=40 | H22: =CEILING('Плитка-производство Россия '!E16*0.7,10) -> 5390
D23: 100х200 | G23: h=50 | H23: =CEILING('Плитка-производство Россия '!F16*0.65,10) -> 5720
A24: Гранатовый амфиболит Нигозеро | D24: Полнопиленая | G24: h=30 | H24: =CEILING('Плитка-производство Россия '!D19*0.8,10) -> 5680
D25: Термообработанная | G25: h=40 | H25: =CEILING('Плитка-производство Россия '!E19*0.7,10) -> 6090
D26: 100х200 | G26: h=50 | H26: =CEILING('Плитка-производство Россия '!F19*0.65,10) -> 6500
A27: Дымовский (Елизовский) | D27: Полнопиленая | G27: h=30 | H27: =CEILING('Плитка-производство Россия '!D22*0.85,10) -> 5520
D28: Термообработанная | G28: h=40 | H28: =CEILING('Плитка-производство Россия '!E22*0.75,10) -> 5770
D29: 100х200 | G29: h=50 | H29: =CEILING('Плитка-производство Россия '!F22*0.7,10) -> 6160
A30: Жалгыз | D30: Полнопиленая | G30: h=30 | H30: =CEILING('Плитка-производство Россия '!D28*0.9,10) -> 3870
D31: Термообработанная | G31: h=40 | H31: =CEILING('Плитка-производство Россия '!E28*0.8,10) -> 4000
D32: 100х200 | G32: h=50 | H32: =CEILING('Плитка-производство Россия '!F28*0.75,10) -> 4200
A33: Жельтау-1 | D33: Полнопиленая | G33: h=30 | H33: =CEILING('Плитка-производство Россия '!D31*0.9,10) -> 5040
D34: Термообработанная | G34: h=40 | H34: =CEILING('Плитка-производство Россия '!E31*0.8,10) -> 5280
D35: 100х200 | G35: h=50 | H35: =CEILING('Плитка-производство Россия '!F31*0.75,10) -> 5620
A36: Жельтау-2А | D36: Полнопиленая | G36: h=30 | H36: ='Плитка-производство Россия '!D34*0.9 -> 5031
D37: Термообработанная | G37: h=40 | H37: ='Плитка-производство Россия '!E34*0.8 -> 5272
D38: 100х200 | G38: h=50 | H38: ='Плитка-производство Россия '!F34*0.75 -> 5617.5
A39: Капустинский | D39: Полнопиленая | G39: h=30 | H39: ='Плитка-производство Россия '!D43*0.8 -> 6552
D40: Термообработанная | G40: h=40 | H40: ='Плитка-производство Россия '!E43*0.7 -> 6993
D41: 100х200 | G41: h=50 | H41: ='Плитка-производство Россия '!F43*0.65 -> 7793.5
A42: Куртинский | D42: Полнопиленая | G42: h=30 | H42: ='Плитка-производство Россия '!D46 -> 4490
D43: Термообработанная | G43: h=40 | H43: =CEILING('Плитка-производство Россия '!E46*0.9,10) -> 4770
D44: 100х200 | G44: h=50 | H44: =CEILING('Плитка-производство Россия '!F46*0.85,10) -> 5100
A45: Мансуровский | D45: Полнопиленая | G45: h=30 | H45: =CEILING('Плитка-производство Россия '!D49*0.9,10) -> 4630
D46: Термообработанная | G46: h=40 | H46: =CEILING('Плитка-производство Россия '!E49*0.8,10) -> 4920
D47: 100х200 | G47: h=50 | H47: =CEILING('Плитка-производство Россия '!F49*0.75,10) -> 5170
A48: Покостовский | D48: Полнопиленая | G48: h=30 | H48: =CEILING('Плитка-производство Россия '!D55*0.8,10) -> 5040
D49: Термообработанная | G49: h=40 | H49: =CEILING('Плитка-производство Россия '!E55*0.7,10) -> 5390
D50: 100х200 | G50: h=50 | H50: =CEILING('Плитка-производство Россия '!F55*0.65,10) -> 5780
A51: Южно-Султаевский | D51: Полнопиленая | G51: h=30 | H51: =CEILING('Плитка-производство Россия '!D61*0.9,10) -> 4590
D52: Термообработанная | G52: h=40 | H52: =CEILING('Плитка-производство Россия '!E61*0.8,10) -> 4800
D53: 100х200 | G53: h=50 | H53: =CEILING('Плитка-производство Россия '!F61*0.75,10) -> 5100
A54: Габбро Другорецкое | D54: Полнопиленая | G54: h=30 | H54: =CEILING('Плитка-производство Россия '!D64*0.9,10) -> 9900
D55: Термообработанная | G55: h=40 | H55: =CEILING('Плитка-производство Россия '!E64*0.8,10) -> 14960
D56: 100х200 | G56: h=50 | H56: =CEILING('Плитка-производство Россия '!F64*0.75,10) -> 16720
A57: Примечание:
A58: 1. Цена указана за 1 квадратный метр продукции, включая упаковку и погрузку на транспортное средство клиента
A59: 2. На партии продукции более 1000 м2 предоставляются скидки
A60: 3. На партии продукции менее 10 м2 действует наценка - 10%
A61: 4. На партии продукции более 10 м2, но менее 25 м2 действует наценка - 5%
A62: 5. В случае значительного изменения курсов валют, при расчете стоимости применяется текущий биржевой курс доллара США
A63: 6. Стоимость брусчатки актуальна только для имеющейся в наличии на складе
A64: 7. На дополнительную услугу - переборка изделий, включая распаковку, пересортировку и повторную упаковку, действует наценка - 20%
A65: 8. При отгрузке со склада в г. Реутов применяется наценка: 30мм - 600руб/м2, 40мм - 800руб/м2, 50 мм - 1000руб/м2 , 60мм -1200руб/м2

Sheet Лист5 (hidden)
A6: Московская обл., г. Реутов, ул. Фабричная, 4 | I6: info@graniteh.ru
A7: тел: (495) 777-60-74, 645-70-95 / факс: (495) 777-60-74 | I7: http://www.graniteh.ru
A9: Брусчатка гранитная, производство - Китай (высший сорт) | I9: со склада в Москве (500 м от МКАД)
A11: Maple Red Мапл Рэд G562 | D11: Полнопиленая
D12: Термообработанная
D13: 200х100х30 | I13: 1740
D14: 200х100х50 | I14: 1080
A15: Padang Dark "Цезарь" G654 | D15: Полнопиленая
D16: Термообработанная | I16: 1500
D17: 200х100х50 | I17: 1080
A18: Royal White "Кантри" G603 | D18: Полнопиленая
D19: Термообработанная | I19: 1530
D20: 200х100х50 | I20: 1920
A21: Bainbrook Brown "Альтернатива" G664 | D21: Полнопиленая
D22: Термообработанная | I22: 1530
D23: 200х100х50 | I23: 1830

Sheet Лист6 (hidden)
J11: Цена, руб.
J12: 2700
J13: 3240
J14: 4320
J15: 5310
J18: Цена, руб.
J19: 294
J20: 315
J21: 744
J25: 3600
J28: 4640
J30: 4640
J31: 3600
J32: 4640
J37: 160
J39: 200
J45: 208
J47: 248

Sheet Профилирование
A6: Московская обл., г. Реутов, ул. Фабричная, 4 | I6: sale@graniteh.ru
A7: тел: (495) 777-60-74, 645-70-95 / WhatsApp: (926) 746-68-07 | I7: http://www.graniteh.ru
A9: Профессиональное изготовление профилей на собственном пр-ве в г.Воскресенск МО
A11: Артикул | B11: Вид | D11: Толщина | F11: Цена, руб. (без НДС)
F12: Полированный | H12: Шлифованный
D13: 20мм | F13: от 800 | H13: от 750
D14: 30мм | F14: от 600 | H14: от 500
A15: E (5мм) | D15: 20мм | F15: от 700 | H15: от 450
D16: 30мм | F16: от 1100 | H16: от 700
A17: А (R=10-15) | D17: 20мм | F17: от 1100 | H17: от 700
D18: 30мм | F18: от 1300 | H18: от 850
A19: V | D19: 20мм | F19: от 1650 | H19: от 1050
D20: 30мм | F20: от 2000 | H20: от 1300
A21: L | D21: 20мм | F21: от 2250 | H21: от 1650
D22: 30мм | F22: от 2700 | H22: от 2000
A23: H | D23: 20мм | F23: от 2400 | H23: от 1750
D24: 30мм | F24: от 2900 | H24: от 2100
A25: O | D25: 20мм | F25: - | H25: -
D26: 30мм | F26: от 3450 | H26: от 2500

Sheet Инструмент
I3: Дата | J3: =TODAY() -> 2025-06-01
I4: Курс USD | J4: 90
A6: Московская обл., г. Реутов, ул. Фабричная, 4 | J6: sale@graniteh.ru
A7: тел: (495) 777-60-74, 645-70-95 / WhatsApp: (926) 746-68-07 | J7: http://www.graniteh.ru
A8: Камнеобрабатывающий инструмент пр-во - Китай (высший сорт) | J8: со склада в Москве (500 м от МКАД)
A10: Алмазные отрезные сегментные диски
B11: Артикул | D11: Посадочное отверстие | E11: Диаметр, мм | F11: Кол-во сегментов | G11: Размер сегментов | H11: Используемый материал | J11: Цена, руб.
B12: D350 | D12: 60 / 50 | E12: 350 | F12: 24 | G12: 40х3х12 | H12: твердый гранит | J12: =Лист6!J12*$J$4/30 -> 8100
B13: D400 | D13: 60 / 50 | E13: 400 | F13: 28 | G13: 40х3х12 | H13: твердый гранит | J13: =Лист6!J13*$J$4/30 -> 9720
B14: D500 | D14: 60 / 50 | E14: 500 | F14: 65 | G14: 20х3х12 | H14: твердый гранит | J14: =Лист6!J14*$J$4/30 -> 12960
B15: D550 | D15: 60 / 50 | E15: 55 | F15: 40 | G15: 40х3х12 | H15: твердый гранит | J15: =Лист6!J15*$J$4/30 -> 15930
A17: Диски "ТУРБО" для сухой резки гранита
B18: Артикул | D18: Посадочное отверстие | E18: Диаметр, мм | F18: Толщина, мм | G18: Кол-во сегментов | H18: Используемый материал | J18: Цена, руб.
B19: T115 | D19: 22.23 | E19: 115 | F19: 2 | G19: 9 | H19: твердый гранит | J19: =Лист6!J19*$J$4/30 -> 882
B20: T125 | D20: 22.23 | E20: 125 | F20: 2 | G20: 10 | H20: твердый гранит | J20: =Лист6!J20*$J$4/30 -> 945
B21: T230 | D21: 22.23 | E21: 230 | F21: 3 | G21: 112 | H21: твердый гранит | J21: =Лист6!J21*$J$4/30 -> 2232
A23: Профильные ролики (фрезы) для ручных машин типа MASTER, SECTOR, FLEX
A24: Внешний вид | B24: Артикул | D24: Крепление | F24: Диаметр, мм | H24: Используемый материал | J24: Цена, руб.
B25: FA20 | D25: М14 | F25: 70 | H25: твердый гранит | J25: =Лист6!J25*$J$4/30 -> 10800
B26: FA30
B27: FB20
B28: FB30 | D28: М14 | F28: 100 | H28: твердый гранит | J28: =Лист6!J28*$J$4/30 -> 13920
B29: FE20
B30: FE30 | D30: М14 | F30: 100 | H30: твердый гранит | J30: =Лист6!J30*$J$4/30 -> 13920
B31: FV20 | D31: М14 | F31: 60 | H31: гранит, мрамор | J31: =Лист6!J31*$J$4/30 -> 10800
B32: FV30 | D32: М14 | F32: 70 | H32: гранит, мрамор | J32: =Лист6!J32*$J$4/30 -> 13920
A34: Алмазные гибкие диски (черепашки)
A35: Внешний вид | B35: Арти-кул | C35: Диаметр, мм | D35: Вид обработки | F35: Номера, Mesh | J35: Цена, руб.
B37: СM | C37: 100 | D37: С водой | F37: 30# 50# 100# 200# 400# 800# 1500# 3000# BUFF# | J37: =Лист6!J37*Инструмент!$J$4/30 -> 480
B39: CS | C39: 100 | D39: Без воды | F39: 50# 100# 200# 400# 800# 1500# 3000# BUFF# | J39: =Лист6!J39*Инструмент!$J$4/30 -> 600
A42: Улучшенные алмазные гибкие диски "Konigsberg" (черепашки)
A43: Внешний вид | B43: Арти-кул | C43: Диаметр, мм | D43: Вид обработки | F43: Номера, Mesh | J43: Цена, руб.
B45: СM | C45: 100 | D45: С водой | F45: 50# 100# 200# 400# 800# 1500# 3000# BUFF# | J45: =Лист6!J45*Инструмент!$J$4/30 -> 624
B47: CS | C47: 100 | D47: Без воды | F47: 50# 100# 200# 400# 800# 1500# 3000# BUFF# | J47: =Лист6!J47*Инструмент!$J$4/30 -> 744
